[Event "Blixt-SM 2025"]
[Site "Norrköping, Sweden"]
[Date "2025.09.26"]
[Round "1.8"]
[White "Tadjerbashi, Amir"]
[Black "Umegard, Torbjorn"]
[Result "1/2-1/2"]
[TimeControl "3 min + 2 sec/move"]
[WhiteElo "2235"]
[BlackElo "2063"]

1. e4 {[%clk 00:03:02]} {[%emt 00:00:02]} Nc6 {[%clk 00:03:03]} {[%emt
00:00:02]} 2. d4 {[%clk 00:03:03]} {[%emt 00:00:01]} d5 {[%clk 00:03:04]} 3.
Nc3 {[%clk 00:03:04]} {[%emt 00:00:01]} e6 {[%clk 00:02:52]} {[%emt 00:00:14]}
4. Nf3 {[%clk 00:03:04]} {[%emt 00:00:02]} Nf6 {[%clk 00:02:53]} 5. e5 {[%clk
00:03:05]} {[%emt 00:00:01]} Ne4 {[%clk 00:02:53]} {[%emt 00:00:02]} 6. Bd3
{[%clk 00:03:05]} {[%emt 00:00:02]} Bb4 {[%clk 00:02:53]} {[%emt 00:00:02]} 7.
Bd2 {[%clk 00:03:05]} {[%emt 00:00:02]} Nxd2 {[%clk 00:02:50]} {[%emt
00:00:05]} 8. Qxd2 {[%clk 00:03:06]} {[%emt 00:00:01]} O-O {[%clk 00:02:36]}
{[%emt 00:00:15]} 9. h4 {[%clk 00:03:07]} {[%emt 00:00:02]} f6 {[%clk
00:02:32]} {[%emt 00:00:06]} 10. exf6 {[%clk 00:03:06]} {[%emt 00:00:03]} Qxf6
{[%clk 00:02:28]} {[%emt 00:00:05]} 11. O-O {[%clk 00:02:49]} {[%emt 00:00:20]}
e5 {[%clk 00:02:22]} {[%emt 00:00:08]} 12. Nxd5 {[%clk 00:02:30]} {[%emt
00:00:21]} Bxd2 {[%clk 00:02:17]} {[%emt 00:00:07]} 13. Nxf6+ {[%clk 00:02:31]}
gxf6 {[%clk 00:02:07]} {[%emt 00:00:12]} 14. Nxd2 {[%clk 00:02:24]} {[%emt
00:00:09]} Nxd4 {[%clk 00:02:07]} {[%emt 00:00:01]} 15. c3 {[%clk 00:02:17]}
{[%emt 00:00:09]} Nc6 {[%clk 00:02:07]} {[%emt 00:00:02]} 16. Bc4+ {[%clk
00:02:15]} {[%emt 00:00:05]} Kg7 {[%clk 00:02:04]} {[%emt 00:00:05]} 17. Rad1
{[%clk 00:02:12]} {[%emt 00:00:05]} Bf5 {[%clk 00:02:03]} {[%emt 00:00:02]} 18.
Bd5 {[%clk 00:02:08]} {[%emt 00:00:07]} Rfd8 {[%clk 00:02:02]} {[%emt
00:00:03]} 19. Bxc6 {[%clk 00:01:46]} {[%emt 00:00:24]} bxc6 {[%clk 00:02:03]}
{[%emt 00:00:01]} 20. Nb3 {[%clk 00:01:46]} Be6 {[%clk 00:01:54]} {[%emt
00:00:11]} 21. Nc5 {[%clk 00:01:35]} {[%emt 00:00:14]} Kf7 {[%clk 00:01:43]}
{[%emt 00:00:13]} 22. b3 {[%clk 00:01:35]} {[%emt 00:00:02]} Ke7 {[%clk
00:01:43]} {[%emt 00:00:02]} 23. c4 {[%clk 00:01:37]} {[%emt 00:00:01]} Rd6
{[%clk 00:01:43]} {[%emt 00:00:01]} 24. Ne4 {[%clk 00:01:38]} Rxd1 {[%clk
00:01:39]} {[%emt 00:00:06]} 25. Rxd1 {[%clk 00:01:39]} a5 {[%clk 00:01:34]}
{[%emt 00:00:07]} 26. Nc5 {[%clk 00:01:38]} {[%emt 00:00:03]} h6 {[%clk
00:01:21]} {[%emt 00:00:15]} 27. f3 {[%clk 00:01:39]} Rb8 {[%clk 00:01:21]}
{[%emt 00:00:01]} 28. Kf2 {[%clk 00:01:39]} {[%emt 00:00:03]} Rg8 {[%clk
00:01:21]} {[%emt 00:00:01]} 29. g4 {[%clk 00:01:38]} {[%emt 00:00:04]} Rh8
{[%clk 00:01:11]} {[%emt 00:00:12]} 30. h5 {[%clk 00:01:39]} Rg8 {[%clk
00:01:12]} {[%emt 00:00:02]} 31. Ke3 {[%clk 00:01:29]} {[%emt 00:00:11]} Bc8
{[%clk 00:01:11]} {[%emt 00:00:03]} 32. a3 {[%clk 00:00:44]} {[%emt 00:00:48]}
Rf8 {[%clk 00:01:11]} {[%emt 00:00:01]} 33. b4 {[%clk 00:00:45]} axb4 34. axb4
{[%clk 00:00:46]} f5 {[%clk 00:01:11]} 35. gxf5 {[%clk 00:00:30]} {[%emt
00:00:18]} Rxf5 {[%clk 00:01:12]} {[%emt 00:00:01]} 36. Rg1 {[%clk 00:00:31]}
Kf7 {[%clk 00:01:08]} {[%emt 00:00:05]} 37. Rd1 {[%clk 00:00:25]} {[%emt
00:00:09]} Rxh5 {[%clk 00:01:07]} {[%emt 00:00:03]} 38. Rd8 {[%clk 00:00:26]}
Bf5 {[%clk 00:01:05]} {[%emt 00:00:05]} 39. b5 {[%clk 00:00:19]} {[%emt
00:00:09]} Rh4 {[%clk 00:01:02]} {[%emt 00:00:05]} 40. Nd3 {[%clk 00:00:11]}
{[%emt 00:00:09]} Bxd3 {[%clk 00:01:02]} {[%emt 00:00:03]} 41. Kxd3 {[%clk
00:00:12]} {[%emt 00:00:01]} cxb5 {[%clk 00:01:03]} 42. cxb5 {[%clk 00:00:13]}
Rb4 {[%clk 00:01:04]} 43. Rd7+ {[%clk 00:00:12]} {[%emt 00:00:03]} Ke6 {[%clk
00:01:03]} {[%emt 00:00:03]} 44. Rxc7 {[%clk 00:00:13]} {[%emt 00:00:01]} Rxb5
{[%clk 00:00:59]} {[%emt 00:00:06]} 45. Rc6+ {[%clk 00:00:14]} Kf5 {[%clk
00:01:00]} 46. Rxh6 {[%clk 00:00:15]} {[%emt 00:00:02]} Rb3+ {[%clk 00:01:02]}
47. Ke2 {[%clk 00:00:16]} Kf4 {[%clk 00:00:56]} {[%emt 00:00:07]} 48. Rf6+
{[%clk 00:00:17]} Kg5 {[%clk 00:00:58]} 49. Rf8 {[%clk 00:00:18]} {[%emt
00:00:01]} 1/2-1/2

[Event "Blixt-SM 2025"]
[Site "Norrköping, Sweden"]
[Date "2025.09.26"]
[Round "3.4"]
[White "Olsson, Linus"]
[Black "Grahn, Vidar"]
[Result "1-0"]
[TimeControl "3 min + 2 sec/move"]
[WhiteTitle "FM"]
[BlackTitle "FM"]
[WhiteElo "2166"]
[BlackElo "2236"]

1. d4 {[%clk 00:03:02]} {[%emt 00:00:01]} d5 {[%clk 00:03:04]} {[%emt
00:00:01]} 2. c4 {[%clk 00:03:03]} e6 {[%clk 00:03:05]} 3. Nf3 {[%clk
00:03:04]} {[%emt 00:00:01]} Nf6 {[%clk 00:03:06]} 4. g3 {[%clk 00:03:05]} Bb4+
{[%clk 00:03:05]} {[%emt 00:00:04]} 5. Nbd2 {[%clk 00:03:04]} {[%emt 00:00:03]}
dxc4 {[%clk 00:03:06]} {[%emt 00:00:02]} 6. Qc2 {[%clk 00:03:03]} {[%emt
00:00:02]} b5 {[%clk 00:03:02]} {[%emt 00:00:05]} 7. Bg2 {[%clk 00:02:57]}
{[%emt 00:00:08]} a5 {[%clk 00:02:44]} {[%emt 00:00:21]} 8. O-O {[%clk
00:02:56]} {[%emt 00:00:03]} a4 {[%clk 00:02:39]} {[%emt 00:00:07]} 9. Ne4
{[%clk 00:02:33]} {[%emt 00:00:24]} Bb7 {[%clk 00:02:23]} {[%emt 00:00:19]} 10.
Nxf6+ {[%clk 00:02:12]} {[%emt 00:00:24]} Qxf6 {[%clk 00:02:22]} {[%emt
00:00:02]} 11. Bf4 {[%clk 00:02:09]} {[%emt 00:00:04]} Bd6 {[%clk 00:02:11]}
{[%emt 00:00:13]} 12. Bg5 {[%clk 00:01:58]} {[%emt 00:00:14]} Qg6 {[%clk
00:02:10]} {[%emt 00:00:02]} 13. Qd2 {[%clk 00:01:54]} {[%emt 00:00:06]} f6
{[%clk 00:02:06]} {[%emt 00:00:06]} 14. Bf4 {[%clk 00:01:51]} {[%emt 00:00:06]}
O-O {[%clk 00:02:04]} {[%emt 00:00:04]} 15. Nh4 {[%clk 00:01:51]} {[%emt
00:00:02]} Qf7 {[%clk 00:00:54]} {[%emt 00:01:11]} 16. Bxb7 {[%clk 00:01:47]}
{[%emt 00:00:07]} Ra7 {[%clk 00:00:54]} {[%emt 00:00:02]} 17. Bxd6 {[%clk
00:01:46]} {[%emt 00:00:03]} cxd6 {[%clk 00:00:54]} {[%emt 00:00:01]} 18. Bg2
{[%clk 00:01:45]} {[%emt 00:00:03]} d5 {[%clk 00:00:51]} {[%emt 00:00:06]} 19.
e4 {[%clk 00:01:44]} {[%emt 00:00:03]} Nc6 {[%clk 00:00:52]} 20. exd5 {[%clk
00:01:43]} {[%emt 00:00:04]} exd5 {[%clk 00:00:50]} {[%emt 00:00:04]} 21. Nf5
{[%clk 00:01:39]} {[%emt 00:00:05]} Rd8 {[%clk 00:00:40]} {[%emt 00:00:13]} 22.
a3 {[%clk 00:01:32]} {[%emt 00:00:10]} Na5 {[%clk 00:00:38]} {[%emt 00:00:04]}
23. Rae1 {[%clk 00:01:28]} {[%emt 00:00:05]} Nb3 {[%clk 00:00:30]} {[%emt
00:00:10]} 24. Qe3 {[%clk 00:01:17]} {[%emt 00:00:13]} Raa8 {[%clk 00:00:20]}
{[%emt 00:00:12]} 25. Qf4 {[%clk 00:01:03]} {[%emt 00:00:15]} Ra7 {[%clk
00:00:09]} {[%emt 00:00:14]} 26. Re2 {[%clk 00:00:58]} {[%emt 00:00:07]} Rad7
{[%clk 00:00:05]} {[%emt 00:00:06]} 27. Rfe1 {[%clk 00:00:58]} Qg6 {[%clk
00:00:03]} {[%emt 00:00:03]} 28. Ne7+ {[%clk 00:00:56]} {[%emt 00:00:05]} Rxe7
{[%clk 00:00:04]} {[%emt 00:00:01]} 29. Rxe7 {[%clk 00:00:56]} {[%emt
00:00:02]} 1-0

[Event "Blixt-SM 2025"]
[Site "Norrköping, Sweden"]
[Date "2025.09.26"]
[Round "4.10"]
[White "Lind, Jan-Olov"]
[Black "Bergdahl, Martin"]
[Result "0-1"]
[TimeControl "3 min + 2 sec/move"]
[WhiteElo "2057"]
[BlackElo "1954"]

1. e4 {[%clk 00:03:02]} {[%emt 00:00:01]} c6 {[%clk 00:03:03]} 2. d4 {[%clk
00:03:03]} d5 {[%clk 00:03:05]} {[%emt 00:00:03]} 3. exd5 {[%clk 00:03:04]}
cxd5 {[%clk 00:03:06]} {[%emt 00:00:01]} 4. c4 {[%clk 00:03:05]} {[%emt
00:00:01]} Nf6 {[%clk 00:03:06]} {[%emt 00:00:02]} 5. Nc3 {[%clk 00:03:06]} Nc6
{[%clk 00:03:04]} {[%emt 00:00:04]} 6. Nf3 {[%clk 00:03:07]} Be6 {[%clk
00:03:05]} {[%emt 00:00:02]} 7. c5 {[%clk 00:03:05]} {[%emt 00:00:04]} Bg4
{[%clk 00:03:05]} {[%emt 00:00:02]} 8. Bb5 {[%clk 00:03:03]} {[%emt 00:00:04]}
Bxf3 {[%clk 00:02:47]} {[%emt 00:00:19]} 9. Qxf3 {[%clk 00:02:53]} {[%emt
00:00:13]} e6 {[%clk 00:02:46]} {[%emt 00:00:03]} 10. Bf4 {[%clk 00:02:43]}
{[%emt 00:00:12]} Be7 {[%clk 00:02:46]} {[%emt 00:00:01]} 11. O-O {[%clk
00:02:39]} {[%emt 00:00:07]} O-O {[%clk 00:02:45]} {[%emt 00:00:03]} 12. Bxc6
{[%clk 00:02:40]} {[%emt 00:00:02]} bxc6 {[%clk 00:02:45]} 13. Rfe1 {[%clk
00:02:36]} {[%emt 00:00:05]} Qa5 {[%clk 00:02:32]} {[%emt 00:00:15]} 14. a3
{[%clk 00:02:29]} {[%emt 00:00:09]} Bd8 {[%clk 00:02:02]} {[%emt 00:00:32]} 15.
b4 {[%clk 00:02:20]} {[%emt 00:00:11]} Qa6 {[%clk 00:02:03]} {[%emt 00:00:02]}
16. a4 {[%clk 00:02:01]} {[%emt 00:00:22]} Qc4 {[%clk 00:02:00]} {[%emt
00:00:04]} 17. Be5 {[%clk 00:01:49]} {[%emt 00:00:14]} Qxb4 {[%clk 00:01:52]}
{[%emt 00:00:10]} 18. Reb1 {[%clk 00:01:37]} {[%emt 00:00:14]} Qa5 {[%clk
00:01:49]} {[%emt 00:00:05]} 19. Rb7 {[%clk 00:01:27]} {[%emt 00:00:11]} Qa6
{[%clk 00:01:22]} {[%emt 00:00:30]} 20. Rab1 {[%clk 00:01:25]} {[%emt
00:00:03]} Rc8 {[%clk 00:00:53]} {[%emt 00:00:31]} 21. g4 {[%clk 00:01:23]}
{[%emt 00:00:04]} Ne4 {[%clk 00:00:46]} {[%emt 00:00:09]} 22. Nxe4 {[%clk
00:00:50]} {[%emt 00:00:36]} dxe4 {[%clk 00:00:46]} {[%emt 00:00:02]} 23. Qxe4
{[%clk 00:00:47]} {[%emt 00:00:05]} Qxa4 {[%clk 00:00:42]} {[%emt 00:00:06]} 24.
Qf4 {[%clk 00:00:41]} {[%emt 00:00:07]} Qc2 {[%clk 00:00:30]} {[%emt 00:00:14]}
25. Bd6 {[%clk 00:00:41]} {[%emt 00:00:02]} Bf6 {[%clk 00:00:06]} {[%emt
00:00:26]} 26. g5 {[%clk 00:00:34]} {[%emt 00:00:08]} Bxd4 {[%clk 00:00:04]}
{[%emt 00:00:05]} 27. Qxd4 {[%clk 00:00:30]} {[%emt 00:00:06]} Rfd8 {[%clk
00:00:05]} 28. Qf4 {[%clk 00:00:30]} {[%emt 00:00:02]} Qg6 {[%clk 00:00:05]}
{[%emt 00:00:03]} 29. h4 {[%clk 00:00:26]} {[%emt 00:00:06]} Rd7 {[%clk
00:00:07]} 30. Rb8 {[%clk 00:00:23]} {[%emt 00:00:05]} Rdd8 {[%clk 00:00:07]}
{[%emt 00:00:03]} 31. Rxc8 {[%clk 00:00:23]} {[%emt 00:00:01]} Qxb1+ {[%clk
00:00:07]} {[%emt 00:00:03]} 32. Kg2 {[%clk 00:00:23]} Rxc8 {[%clk 00:00:08]}
{[%emt 00:00:01]} 33. h5 {[%clk 00:00:23]} {[%emt 00:00:02]} Qf5 {[%clk
00:00:09]} {[%emt 00:00:01]} 34. Qd2 {[%clk 00:00:21]} {[%emt 00:00:04]} Qd5+
{[%clk 00:00:10]} {[%emt 00:00:02]} 35. Qxd5 {[%clk 00:00:21]} {[%emt
00:00:01]} cxd5 {[%clk 00:00:10]} {[%emt 00:00:02]} 36. Kf3 {[%clk 00:00:21]}
{[%emt 00:00:01]} Rc6 {[%clk 00:00:12]} 37. Ke3 {[%clk 00:00:22]} {[%emt
00:00:01]} a5 {[%clk 00:00:13]} 38. Kd4 {[%clk 00:00:23]} {[%emt 00:00:02]} f6
{[%clk 00:00:11]} {[%emt 00:00:04]} 39. f4 {[%clk 00:00:18]} {[%emt 00:00:07]}
fxg5 {[%clk 00:00:11]} {[%emt 00:00:02]} 40. fxg5 {[%clk 00:00:16]} {[%emt
00:00:03]} h6 {[%clk 00:00:12]} {[%emt 00:00:02]} 41. g6 {[%clk 00:00:16]}
{[%emt 00:00:02]} Ra6 {[%clk 00:00:09]} {[%emt 00:00:05]} 42. Kc3 {[%clk
00:00:10]} {[%emt 00:00:07]} a4 {[%clk 00:00:10]} {[%emt 00:00:02]} 43. Kb4
{[%clk 00:00:09]} {[%emt 00:00:02]} d4 {[%clk 00:00:11]} {[%emt 00:00:02]} 44.
Bf4 {[%clk 00:00:08]} {[%emt 00:00:02]} Rc6 {[%clk 00:00:09]} {[%emt 00:00:05]}
45. Kb5 {[%clk 00:00:09]} {[%emt 00:00:01]} a3 {[%clk 00:00:07]} {[%emt
00:00:05]} 46. Bc1 {[%clk 00:00:04]} {[%emt 00:00:07]} a2 {[%emt 00:00:03]} 47.
Bb2 d3 {[%clk 00:00:06]} 48. Kxc6 {[%clk 00:00:06]} {[%emt 00:00:02]} d2 {[%clk
00:00:07]} 49. Kd6 {[%clk 00:00:04]} {[%emt 00:00:03]} d1=Q+ {[%clk 00:00:08]}
{[%emt 00:00:02]} 50. Kxe6 {[%clk 00:00:05]} Qe2+ {[%clk 00:00:08]} {[%emt
00:00:01]} 51. Kd6 {[%clk 00:00:06]} {[%emt 00:00:02]} Qxb2 {[%clk 00:00:09]}
{[%emt 00:00:01]} 0-1

[Event "Blixt-SM 2025"]
[Site "Norrköping, Sweden"]
[Date "2025.09.26"]
[Round "6.6"]
[White "Muntean, Victor"]
[Black "Wernberg, Hugo"]
[Result "1/2-1/2"]
[TimeControl "3 min + 2 sec/move"]
[BlackTitle "FM"]
[WhiteElo "2151"]
[BlackElo "2285"]

1. e4 {[%clk 00:03:03]} c5 {[%clk 00:03:04]} {[%emt 00:00:01]} 2. c3 {[%clk
00:03:04]} Nf6 {[%clk 00:03:05]} {[%emt 00:00:01]} 3. e5 {[%clk 00:03:05]} Nd5
{[%clk 00:03:06]} 4. Nf3 {[%clk 00:03:07]} {[%emt 00:00:02]} d6 {[%clk
00:03:08]} 5. Na3 {[%clk 00:03:07]} dxe5 {[%clk 00:03:07]} {[%emt 00:00:02]} 6.
Nxe5 {[%clk 00:03:08]} {[%emt 00:00:02]} e6 {[%clk 00:03:07]} {[%emt 00:00:02]}
7. g3 {[%clk 00:03:05]} {[%emt 00:00:05]} Nd7 {[%clk 00:03:04]} {[%emt
00:00:06]} 8. Nac4 {[%clk 00:03:03]} {[%emt 00:00:03]} Nxe5 {[%clk 00:03:00]}
{[%emt 00:00:06]} 9. Nxe5 {[%clk 00:03:03]} {[%emt 00:00:01]} Bd6 {[%clk
00:02:56]} {[%emt 00:00:06]} 10. Qe2 {[%clk 00:02:52]} {[%emt 00:00:14]} O-O
{[%clk 00:02:52]} {[%emt 00:00:06]} 11. Bg2 {[%clk 00:02:53]} Qc7 {[%clk
00:02:43]} {[%emt 00:00:11]} 12. Nc4 {[%clk 00:02:53]} {[%emt 00:00:01]} Be7
{[%clk 00:02:42]} {[%emt 00:00:03]} 13. O-O {[%clk 00:02:50]} {[%emt 00:00:04]}
b5 {[%clk 00:02:36]} {[%emt 00:00:09]} 14. Ne3 {[%clk 00:02:51]} {[%emt
00:00:01]} Nxe3 {[%clk 00:02:29]} {[%emt 00:00:10]} 15. fxe3 {[%clk 00:02:21]}
{[%emt 00:00:32]} Rb8 {[%clk 00:02:29]} {[%emt 00:00:02]} 16. d4 {[%clk
00:02:21]} {[%emt 00:00:02]} Bb7 {[%clk 00:02:19]} {[%emt 00:00:12]} 17. e4
{[%clk 00:02:21]} {[%emt 00:00:01]} cxd4 {[%clk 00:02:09]} {[%emt 00:00:12]} 18.
cxd4 {[%clk 00:02:21]} {[%emt 00:00:03]} e5 {[%clk 00:02:10]} {[%emt 00:00:02]}
19. d5 {[%clk 00:02:13]} {[%emt 00:00:10]} Bc5+ {[%clk 00:02:11]} {[%emt
00:00:02]} 20. Kh1 {[%clk 00:02:09]} {[%emt 00:00:05]} Qb6 {[%clk 00:02:06]}
{[%emt 00:00:07]} 21. b3 {[%clk 00:01:44]} {[%emt 00:00:27]} a5 {[%clk
00:02:00]} {[%emt 00:00:07]} 22. Bb2 {[%clk 00:01:45]} {[%emt 00:00:01]} f6
{[%clk 00:02:01]} 23. Rfd1 {[%clk 00:01:40]} {[%emt 00:00:08]} Bc8 {[%clk
00:01:40]} {[%emt 00:00:23]} 24. Rac1 {[%clk 00:01:34]} {[%emt 00:00:08]} Bd7
{[%clk 00:01:41]} {[%emt 00:00:01]} 25. Bf3 {[%clk 00:01:21]} {[%emt 00:00:15]}
Rfc8 {[%clk 00:01:20]} {[%emt 00:00:23]} 26. Bg4 {[%clk 00:01:21]} {[%emt
00:00:02]} Qd6 {[%clk 00:01:14]} {[%emt 00:00:08]} 27. Qf3 {[%clk 00:00:58]}
{[%emt 00:00:25]} Ba7 {[%clk 00:01:01]} {[%emt 00:00:15]} 28. Rxc8+ {[%clk
00:00:38]} {[%emt 00:00:22]} Rxc8 {[%clk 00:01:03]} 29. Rc1 {[%clk 00:00:39]}
Rxc1+ {[%clk 00:00:57]} {[%emt 00:00:08]} 30. Bxc1 {[%clk 00:00:40]} {[%emt
00:00:01]} Qc5 {[%clk 00:00:56]} {[%emt 00:00:02]} 31. Be3 {[%clk 00:00:31]}
{[%emt 00:00:12]} Bxg4 {[%clk 00:00:46]} {[%emt 00:00:12]} 32. Qxg4 {[%clk
00:00:32]} Qxe3 {[%clk 00:00:46]} 33. Qe6+ {[%clk 00:00:21]} {[%emt 00:00:14]}
Kf8 {[%clk 00:00:47]} {[%emt 00:00:01]} 34. Qd6+ {[%clk 00:00:20]} {[%emt
00:00:03]} Kf7 {[%clk 00:00:48]} {[%emt 00:00:01]} 35. Qe6+ {[%clk 00:00:21]}
Kg6 {[%clk 00:00:49]} 36. Qf5+ {[%clk 00:00:22]} Kh6 {[%clk 00:00:45]} {[%emt
00:00:05]} 37. Qh3+ {[%clk 00:00:23]} Kg5 {[%clk 00:00:45]} {[%emt 00:00:02]}
38. Qf5+ {[%clk 00:00:19]} {[%emt 00:00:08]} Kh6 {[%clk 00:00:44]} {[%emt
00:00:02]} 39. Qh3+ {[%clk 00:00:20]} Kg6 {[%clk 00:00:45]} {[%emt 00:00:01]}
40. Qf5+ {[%clk 00:00:22]} Kf7 {[%clk 00:00:46]} 41. Qe6+ {[%clk 00:00:23]}
{[%emt 00:00:01]} Kf8 {[%clk 00:00:47]} 42. Qc8+ {[%clk 00:00:19]} {[%emt
00:00:05]} Ke7 {[%clk 00:00:46]} {[%emt 00:00:03]} 43. Qc7+ {[%clk 00:00:20]}
{[%emt 00:00:02]} Ke8 {[%clk 00:00:44]} {[%emt 00:00:03]} 44. Qc8+ {[%clk
00:00:21]} Ke7 {[%clk 00:00:42]} {[%emt 00:00:04]} 45. Qc7+ {[%clk 00:00:22]}
{[%emt 00:00:02]} 1/2-1/2

[Event "Blixt-SM 2025"]
[Site "Norrköping, Sweden"]
[Date "2025.09.26"]
[Round "8.2"]
[White "Carlsson, Ludvig"]
[Black "Religa, Marek"]
[Result "1-0"]
[TimeControl "3 min + 2 sec/move"]
[WhiteTitle "IM"]
[WhiteElo "2389"]
[BlackElo "2207"]

1. b3 {[%clk 00:03:03]} d6 {[%clk 00:03:04]} 2. d4 {[%clk 00:03:03]} {[%emt
00:00:02]} f5 {[%clk 00:03:02]} {[%emt 00:00:03]} 3. e3 {[%clk 00:03:03]}
{[%emt 00:00:02]} Nf6 {[%clk 00:03:04]} 4. Bb2 {[%clk 00:03:04]} {[%emt
00:00:01]} g6 {[%clk 00:03:05]} 5. h4 {[%clk 00:03:05]} Be6 {[%clk 00:02:55]}
{[%emt 00:00:13]} 6. h5 {[%clk 00:03:02]} {[%emt 00:00:04]} g5 {[%clk
00:02:32]} {[%emt 00:00:24]} 7. Nc3 {[%clk 00:02:50]} {[%emt 00:00:14]} h6
{[%clk 00:02:30]} {[%emt 00:00:05]} 8. Bd3 {[%clk 00:02:49]} {[%emt 00:00:02]}
Qd7 {[%clk 00:02:21]} {[%emt 00:00:13]} 9. Nge2 {[%clk 00:02:47]} {[%emt
00:00:03]} Bf7 {[%clk 00:02:08]} {[%emt 00:00:15]} 10. Ng3 {[%emt 00:00:07]} e6
{[%emt 00:00:01]} 11. d5 {[%clk 00:02:43]} f4 {[%clk 00:01:42]} {[%emt
00:00:29]} 12. Nce4 {[%clk 00:02:28]} {[%emt 00:00:17]} Nxd5 {[%clk 00:01:16]}
{[%emt 00:00:28]} 13. exf4 {[%clk 00:02:28]} {[%emt 00:00:02]} gxf4 {[%clk
00:00:38]} 14. Ne2 {[%clk 00:02:29]} {[%emt 00:00:41]} e5 {[%clk 00:00:29]} 15.
c4 {[%clk 00:02:24]} {[%emt 00:00:18]} Be7 {[%clk 00:00:30]} 16. cxd5 {[%clk
00:02:23]} {[%emt 00:00:03]} Bxd5 17. Nxf4 {[%clk 00:02:24]} exf4 {[%clk
00:00:22]} {[%emt 00:00:12]} 18. Bxh8 {[%clk 00:02:23]} {[%emt 00:00:02]} Nc6
{[%clk 00:00:23]} 19. Nf6+ {[%clk 00:02:09]} {[%emt 00:00:16]} Bxf6 {[%clk
00:00:24]} {[%emt 00:00:01]} 20. Bxf6 {[%clk 00:02:09]} {[%emt 00:00:02]} Kf7
{[%clk 00:00:24]} {[%emt 00:00:02]} 21. Bg6+ {[%clk 00:02:09]} Kxf6 {[%clk
00:00:23]} {[%emt 00:00:04]} 22. Qxd5 {[%clk 00:02:10]} Qe7+ {[%clk 00:00:21]}
{[%emt 00:00:05]} 23. Kf1 {[%clk 00:02:07]} {[%emt 00:00:04]} Ne5 {[%clk
00:00:22]} {[%emt 00:00:01]} 24. Re1 {[%clk 00:02:04]} {[%emt 00:00:05]} c6
{[%clk 00:00:23]} 25. Qe4 {[%clk 00:02:04]} {[%emt 00:00:02]} Kg7 {[%clk
00:00:24]} {[%emt 00:00:01]} 26. Qxf4 {[%clk 00:01:59]} {[%emt 00:00:07]} Rf8
{[%clk 00:00:25]} {[%emt 00:00:01]} 27. Qg3 {[%clk 00:01:59]} {[%emt 00:00:02]}
Kh8 {[%clk 00:00:26]} {[%emt 00:00:01]} 28. Rh4 {[%clk 00:01:58]} {[%emt
00:00:03]} Qf6 {[%clk 00:00:26]} {[%emt 00:00:03]} 29. Bc2 {[%clk 00:01:54]}
{[%emt 00:00:06]} Rg8 {[%clk 00:00:20]} {[%emt 00:00:08]} 30. Rf4 {[%clk
00:01:52]} {[%emt 00:00:04]} Qe7 {[%clk 00:00:12]} {[%emt 00:00:10]} 31. Bg6
{[%clk 00:01:50]} {[%emt 00:00:04]} Qg7 {[%clk 00:00:06]} {[%emt 00:00:08]} 32.
Qe3 {[%clk 00:01:43]} {[%emt 00:00:08]} a5 {[%clk 00:00:06]} {[%emt 00:00:02]}
33. g3 {[%clk 00:01:39]} {[%emt 00:00:07]} Qd7 {[%clk 00:00:07]} {[%emt
00:00:02]} 34. Kg2 {[%clk 00:01:31]} {[%emt 00:00:09]} Qe7 {[%clk 00:00:08]}
{[%emt 00:00:02]} 35. Rf7 {[%clk 00:01:27]} {[%emt 00:00:05]} 1-0